[Event "Betsys MČR v online bleskovém šachu 2021"]
[Site "Chess.com"]
[Date "2021.04.17"]
[Round "5"]
[White "florenc1330"]
[Black "MBorkovec"]
[Result "1-0"]
[WhiteElo "2101"]
[BlackElo "2263"]
[TimeControl "180+1"]
[EndTime "9:46:44 PDT"]
[Termination "Uživatel florenc1330 zvítězil po vzdání soupeře"]

1. c4 {[%clk 0:02:59.7]} 1... Nf6 {[%clk 0:02:59.4]} 2. g3 {[%clk 0:02:59.1]}
2... g6 {[%clk 0:02:59.3]} 3. Bg2 {[%clk 0:02:59]} 3... Bg7 {[%clk 0:02:59.8]}
4. Nc3 {[%clk 0:02:58.8]} 4... O-O {[%clk 0:02:59.9]} 5. Nf3 {[%clk 0:02:58.8]}
5... d6 {[%clk 0:03:00.4]} 6. O-O {[%clk 0:02:58.4]} 6... Nc6 {[%clk 0:03:00.6]}
7. d3 {[%clk 0:02:58.3]} 7... e5 {[%clk 0:02:59.9]} 8. Rb1 {[%clk 0:02:57.9]}
8... Bf5 {[%clk 0:02:59.1]} 9. b4 {[%clk 0:02:56.5]} 9... Qd7 {[%clk 0:02:59.5]}
10. b5 {[%clk 0:02:56.1]} 10... Nd8 {[%clk 0:02:59.7]} 11. Nd5 {[%clk
0:02:46.8]} 11... c6 {[%clk 0:02:23.7]} 12. bxc6 {[%clk 0:02:38.6]} 12... bxc6
{[%clk 0:02:23.9]} 13. Nxf6+ {[%clk 0:02:37.8]} 13... Bxf6 {[%clk 0:02:24.4]}
14. Ba3 {[%clk 0:02:34]} 14... Be7 {[%clk 0:02:21.4]} 15. Qa4 {[%clk 0:02:25.1]}
15... Bh3 {[%clk 0:02:19.5]} 16. Nd2 {[%clk 0:02:12.7]} 16... Bxg2 {[%clk
0:02:19.2]} 17. Kxg2 {[%clk 0:02:12.1]} 17... f5 {[%clk 0:02:19.7]} 18. Rfc1
{[%clk 0:02:07.8]} 18... f4 {[%clk 0:02:13.7]} 19. Ne4 {[%clk 0:02:03.9]} 19...
Ne6 {[%clk 0:02:07.3]} 20. Qa6 {[%clk 0:02:00.4]} 20... d5 {[%clk 0:01:25.2]}
21. Rb7 {[%clk 0:01:55.9]} 21... Qxb7 {[%clk 0:01:25.3]} 22. Qxb7 {[%clk
0:01:54.8]} 22... Bxa3 {[%clk 0:01:25.8]} 23. cxd5 {[%clk 0:01:46.5]} 23... Bxc1
{[%clk 0:01:18.1]} 24. dxe6 {[%clk 0:01:45.3]} 24... fxg3 {[%clk 0:01:16.7]} 25.
hxg3 {[%clk 0:01:41.3]} 25... Rae8 {[%clk 0:01:09.5]} 26. e7 {[%clk 0:01:22.8]}
26... Rf7 {[%clk 0:01:06.8]} 27. Qxc6 {[%clk 0:01:19.3]} 27... Rexe7 {[%clk
0:01:06.2]} 28. Qxc1 {[%clk 0:01:18.7]} 28... Rc7 {[%clk 0:01:06]} 29. Qg5
{[%clk 0:01:17.8]} 29... Rce7 {[%clk 0:01:00.8]} 30. Nf6+ {[%clk 0:01:15.9]}
30... Kg7 {[%clk 0:00:59.4]} 31. Nd5 {[%clk 0:01:11.3]} 31... Re6 {[%clk
0:00:56.7]} 32. Nc3 {[%clk 0:01:01.2]} 32... Rc7 {[%clk 0:00:46]} 33. Ne4 {[%clk
0:01:00.4]} 33... Rc2 {[%clk 0:00:43.3]} 34. Qd8 {[%clk 0:00:59.1]} 34... Rb6
{[%clk 0:00:35.1]} 35. Qe7+ {[%clk 0:00:55.9]} 35... Kh6 {[%clk 0:00:33.4]} 36.
Qxe5 {[%clk 0:00:54.2]} 36... Rxe2 {[%clk 0:00:29]} 37. Qg5+ {[%clk 0:00:54]}
37... Kg7 {[%clk 0:00:29.1]} 38. Qe7+ {[%clk 0:00:51.9]} 38... Kh6 {[%clk
0:00:27.6]} 39. Qf8+ {[%clk 0:00:51.6]} 39... Kh5 {[%clk 0:00:26.9]} 40. Qf3+
{[%clk 0:00:50.8]} 1-0

[Event "Betsys MČR v online bleskovém šachu 2021"]
[Site "Chess.com"]
[Date "2021.04.17"]
[Round "5"]
[White "Qb1xh8"]
[Black "NeumanPetr"]
[Result "0-1"]
[WhiteElo "2134"]
[BlackElo "2494"]
[TimeControl "180+1"]
[EndTime "9:46:46 PDT"]
[Termination "Uživatel NeumanPetr zvítězil po vzdání soupeře"]

1. c4 {[%clk 0:03:00.9]} 1... d6 {[%clk 0:03:00.9]} 2. Nf3 {[%clk 0:03:00]} 2...
Nf6 {[%clk 0:03:01.8]} 3. b3 {[%clk 0:02:57]} 3... g6 {[%clk 0:03:02.7]} 4. Bb2
{[%clk 0:02:57.3]} 4... Bg7 {[%clk 0:03:03.6]} 5. e3 {[%clk 0:02:56.7]} 5... O-O
{[%clk 0:03:04.5]} 6. Be2 {[%clk 0:02:56.4]} 6... e5 {[%clk 0:03:04.5]} 7. d4
{[%clk 0:02:56.2]} 7... e4 {[%clk 0:03:04.4]} 8. Nfd2 {[%clk 0:02:56]} 8... Re8
{[%clk 0:03:05]} 9. Nc3 {[%clk 0:02:55]} 9... c6 {[%clk 0:03:05.4]} 10. h3
{[%clk 0:02:54.2]} 10... d5 {[%clk 0:03:05.5]} 11. b4 {[%clk 0:02:48.9]} 11...
a6 {[%clk 0:03:04.7]} 12. a4 {[%clk 0:02:47.9]} 12... Nbd7 {[%clk 0:02:57.8]}
13. Qb3 {[%clk 0:02:46.8]} 13... Nf8 {[%clk 0:02:49.8]} 14. b5 {[%clk
0:02:28.7]} 14... axb5 {[%clk 0:02:49.2]} 15. axb5 {[%clk 0:02:20.9]} 15...
Rxa1+ {[%clk 0:02:48.8]} 16. Bxa1 {[%clk 0:02:21.8]} 16... h5 {[%clk 0:02:45]}
17. bxc6 {[%clk 0:01:54.8]} 17... bxc6 {[%clk 0:02:44.6]} 18. cxd5 {[%clk
0:01:55]} 18... cxd5 {[%clk 0:02:44.8]} 19. Bb2 {[%clk 0:01:52.9]} 19... N8h7
{[%clk 0:02:44.3]} 20. Ba3 {[%clk 0:01:52.6]} 20... h4 {[%clk 0:02:35.9]} 21.
O-O {[%clk 0:01:51.5]} 21... g5 {[%clk 0:02:35.6]} 22. Bb5 {[%clk 0:01:49.4]}
22... Re6 {[%clk 0:02:25.5]} 23. Be2 {[%clk 0:01:22.7]} 23... Ba6 {[%clk
0:02:10]} 24. Rb1 {[%clk 0:01:20.3]} 24... Bf8 {[%clk 0:01:46.5]} 25. Qb8 {[%clk
0:01:08]} 25... Qxb8 {[%clk 0:01:39.5]} 26. Rxb8 {[%clk 0:01:07.1]} 26... Bxe2
{[%clk 0:01:22.8]} 27. Nxe2 {[%clk 0:01:08]} 27... Kg7 {[%clk 0:01:22.8]} 28.
Bxf8+ {[%clk 0:01:03.1]} 28... Nxf8 {[%clk 0:01:23.2]} 29. Nb3 {[%clk
0:01:02.9]} 29... N8d7 {[%clk 0:01:21.5]} 30. Rd8 {[%clk 0:01:00]} 30... Rc6
{[%clk 0:01:12.2]} 31. Na5 {[%clk 0:00:31]} 31... Rc2 {[%clk 0:01:06.2]} 32. Kf1
{[%clk 0:00:30.7]} 32... Ra2 {[%clk 0:00:49]} 33. Nb3 {[%clk 0:00:30.3]} 33...
Rb2 {[%clk 0:00:49.1]} 34. Nec1 {[%clk 0:00:29.8]} 34... Nb6 {[%clk 0:00:46.2]}
35. g3 {[%clk 0:00:19.7]} 35... hxg3 {[%clk 0:00:45.3]} 36. fxg3 {[%clk
0:00:20]} 36... Nc4 {[%clk 0:00:44.4]} 0-1

[Event "Betsys MČR v online bleskovém šachu 2021"]
[Site "Chess.com"]
[Date "2021.04.17"]
[Round "5"]
[White "jachymcarostrelec4"]
[Black "TrickyPeat"]
[Result "1-0"]
[WhiteElo "1987"]
[BlackElo "2202"]
[TimeControl "180+1"]
[EndTime "9:46:48 PDT"]
[Termination "Uživatel jachymcarostrelec4 zvítězil na čas"]

1. d4 {[%clk 0:03:00.9]} 1... Nf6 {[%clk 0:02:58]} 2. Nf3 {[%clk 0:03:00.1]}
2... g6 {[%clk 0:02:56]} 3. c4 {[%clk 0:02:59.8]} 3... Bg7 {[%clk 0:02:54.4]} 4.
Nc3 {[%clk 0:02:59.7]} 4... O-O {[%clk 0:02:54.1]} 5. e4 {[%clk 0:02:59.7]} 5...
d6 {[%clk 0:02:53.8]} 6. Be2 {[%clk 0:03:00.3]} 6... Nbd7 {[%clk 0:02:51.1]} 7.
O-O {[%clk 0:02:58.8]} 7... e5 {[%clk 0:02:49.5]} 8. d5 {[%clk 0:02:58.7]} 8...
a5 {[%clk 0:02:47.3]} 9. Bg5 {[%clk 0:02:57.9]} 9... h6 {[%clk 0:02:45.8]} 10.
Bh4 {[%clk 0:02:57.2]} 10... Nc5 {[%clk 0:02:41.2]} 11. Nd2 {[%clk 0:02:55.4]}
11... a4 {[%clk 0:02:32.6]} 12. b4 {[%clk 0:02:36.7]} 12... axb3 {[%clk
0:02:30.9]} 13. axb3 {[%clk 0:02:36.9]} 13... Rxa1 {[%clk 0:02:29.4]} 14. Qxa1
{[%clk 0:02:37.8]} 14... g5 {[%clk 0:02:26.8]} 15. Bg3 {[%clk 0:02:36]} 15...
Bd7 {[%clk 0:02:07.5]} 16. b4 {[%clk 0:02:33.9]} 16... Na6 {[%clk 0:02:03.8]}
17. Qb2 {[%clk 0:02:31.5]} 17... h5 {[%clk 0:02:00]} 18. h4 {[%clk 0:02:26.5]}
18... g4 {[%clk 0:01:55.1]} 19. c5 {[%clk 0:02:10.2]} 19... Re8 {[%clk
0:01:36.4]} 20. c6 {[%clk 0:02:03.1]} 20... bxc6 {[%clk 0:01:33.8]} 21. Bxa6
{[%clk 0:02:01.8]} 21... cxd5 {[%clk 0:01:29.8]} 22. Nxd5 {[%clk 0:01:58.6]}
22... Nxd5 {[%clk 0:01:17.4]} 23. exd5 {[%clk 0:01:59.5]} 23... f5 {[%clk
0:01:15.3]} 24. Qc2 {[%clk 0:01:35]} 24... f4 {[%clk 0:01:09.4]} 25. Bh2 {[%clk
0:01:34.8]} 25... Qxh4 {[%clk 0:01:04.9]} 26. Qxc7 {[%clk 0:01:26.9]} 26... g3
{[%clk 0:00:48.6]} 27. fxg3 {[%clk 0:01:24.2]} 27... fxg3 {[%clk 0:00:47.2]} 28.
Bxg3 {[%clk 0:01:23.5]} 28... Qxg3 {[%clk 0:00:33.1]} 29. Qxd7 {[%clk
0:01:22.2]} 29... Rf8 {[%clk 0:00:09.8]} 30. Rxf8+ {[%clk 0:01:11.7]} 30... Bxf8
{[%clk 0:00:08.3]} 31. Qe6+ {[%clk 0:01:09.1]} 31... Kh8 {[%clk 0:00:07.9]} 32.
Qf6+ {[%clk 0:01:07.7]} 32... Bg7 {[%clk 0:00:07]} 33. Qf5 {[%clk 0:00:53.3]}
1-0

[Event "Betsys MČR v online bleskovém šachu 2021"]
[Site "Chess.com"]
[Date "2021.04.17"]
[Round "5"]
[White "Soural_J"]
[Black "HonzaRubes95"]
[Result "1-0"]
[WhiteElo "2196"]
[BlackElo "2489"]
[TimeControl "180+1"]
[EndTime "9:46:50 PDT"]
[Termination "Uživatel Soural_J zvítězil po vzdání soupeře"]

1. Nf3 {[%clk 0:03:00.9]} 1... Nf6 {[%clk 0:02:58.2]} 2. c4 {[%clk 0:03:00.8]}
2... c5 {[%clk 0:02:50.6]} 3. Nc3 {[%clk 0:02:59.3]} 3... Nc6 {[%clk 0:02:40.5]}
4. g3 {[%clk 0:02:58.8]} 4... g6 {[%clk 0:02:40.4]} 5. Bg2 {[%clk 0:02:58.5]}
5... Bg7 {[%clk 0:02:40.5]} 6. d4 {[%clk 0:02:57.9]} 6... cxd4 {[%clk
0:02:40.1]} 7. Nxd4 {[%clk 0:02:57.5]} 7... O-O {[%clk 0:02:35.8]} 8. O-O {[%clk
0:02:57.4]} 8... Qa5 {[%clk 0:02:36]} 9. h3 {[%clk 0:02:49.4]} 9... Qc5 {[%clk
0:02:09]} 10. Be3 {[%clk 0:02:30.3]} 10... Qxc4 {[%clk 0:02:09]} 11. Rc1 {[%clk
0:02:30]} 11... Qa6 {[%clk 0:02:08.9]} 12. Bg5 {[%clk 0:02:15.5]} 12... Nxd4
{[%clk 0:01:58.6]} 13. Qxd4 {[%clk 0:02:15]} 13... d6 {[%clk 0:01:55]} 14. Qe3
{[%clk 0:02:09.7]} 14... Be6 {[%clk 0:01:52.1]} 15. a3 {[%clk 0:02:02.2]} 15...
Rfc8 {[%clk 0:01:43.9]} 16. Bxf6 {[%clk 0:01:40.4]} 16... Bxf6 {[%clk
0:01:41.9]} 17. Nd5 {[%clk 0:01:40.5]} 17... Bxd5 {[%clk 0:01:40.1]} 18. Bxd5
{[%clk 0:01:40.4]} 18... Qb5 {[%clk 0:01:14.6]} 19. Qf3 {[%clk 0:01:21.2]} 19...
Rxc1 {[%clk 0:01:11.6]} 20. Rxc1 {[%clk 0:01:18.7]} 20... Qxb2 {[%clk
0:01:11.8]} 21. Rc7 {[%clk 0:01:14]} 21... Qd4 {[%clk 0:00:44.4]} 22. Rxb7
{[%clk 0:00:58.7]} 22... Rc8 {[%clk 0:00:42.6]} 23. Kg2 {[%clk 0:00:42.4]} 23...
Rc3 {[%clk 0:00:41.4]} 24. e3 {[%clk 0:00:40.8]} 24... Qc5 {[%clk 0:00:22.4]}
25. Rxe7 {[%clk 0:00:37.3]} 25... Qxd5 {[%clk 0:00:14.9]} 26. Re8+ {[%clk
0:00:33.7]} 26... Kg7 {[%clk 0:00:14]} 27. Qxd5 {[%clk 0:00:33.7]} 27... Rxa3
{[%clk 0:00:14.1]} 28. Qxd6 {[%clk 0:00:25.7]} 1-0

[Event "Betsys MČR v online bleskovém šachu 2021"]
[Site "Chess.com"]
[Date "2021.04.17"]
[Round "5"]
[White "lockerbieQ"]
[Black "LiborRojar"]
[Result "0-1"]
[WhiteElo "1736"]
[BlackElo "2065"]
[TimeControl "180+1"]
[EndTime "9:46:50 PDT"]
[Termination "Uživatel LiborRojar zvítězil na čas"]

1. e4 {[%clk 0:03:00.9]} 1... c6 {[%clk 0:02:58.9]} 2. d4 {[%clk 0:02:59.9]}
2... d5 {[%clk 0:02:59.1]} 3. Nd2 {[%clk 0:03:00.1]} 3... dxe4 {[%clk 0:02:59]}
4. Nxe4 {[%clk 0:03:00.3]} 4... Bf5 {[%clk 0:02:59.2]} 5. Ng3 {[%clk 0:03:00.1]}
5... Bg6 {[%clk 0:02:59.3]} 6. h4 {[%clk 0:03:00.3]} 6... h6 {[%clk 0:02:59.5]}
7. h5 {[%clk 0:03:00.7]} 7... Bh7 {[%clk 0:02:59.7]} 8. Nf3 {[%clk 0:03:01.1]}
8... Nd7 {[%clk 0:02:59.3]} 9. Bd3 {[%clk 0:03:00.8]} 9... Bxd3 {[%clk
0:02:59.1]} 10. Qxd3 {[%clk 0:03:01]} 10... Qc7 {[%clk 0:02:59.4]} 11. Bd2
{[%clk 0:02:59.5]} 11... e6 {[%clk 0:02:59.2]} 12. O-O-O {[%clk 0:02:59.3]}
12... O-O-O {[%clk 0:02:58.8]} 13. Ne4 {[%clk 0:02:53.2]} 13... Ngf6 {[%clk
0:02:58.6]} 14. Kb1 {[%clk 0:02:47.4]} 14... Nxe4 {[%clk 0:02:57.3]} 15. Qxe4
{[%clk 0:02:47.3]} 15... Nf6 {[%clk 0:02:57.5]} 16. Qe2 {[%clk 0:02:47.2]} 16...
c5 {[%clk 0:02:52.4]} 17. dxc5 {[%clk 0:02:40.8]} 17... Bxc5 {[%clk 0:02:51.3]}
18. Bc3 {[%clk 0:02:38.8]} 18... Rxd1+ {[%clk 0:02:47.6]} 19. Rxd1 {[%clk
0:02:37.8]} 19... Rd8 {[%clk 0:02:30.7]} 20. Be5 {[%clk 0:02:30.2]} 20... Qb6
{[%clk 0:02:26.7]} 21. Rxd8+ {[%clk 0:02:14.7]} 21... Qxd8 {[%clk 0:01:56.5]}
22. b3 {[%clk 0:02:02.9]} 22... Qd5 {[%clk 0:01:47.2]} 23. Bb2 {[%clk
0:01:25.6]} 23... a6 {[%clk 0:01:39.4]} 24. Ne5 {[%clk 0:00:47.5]} 24... Ne4
{[%clk 0:01:20.4]} 25. f3 {[%clk 0:00:16.1]} 25... Ng3 {[%clk 0:01:12]} 26. Qe1
{[%clk 0:00:15.2]} 26... Nxh5 {[%clk 0:01:09.6]} 27. Nxf7 {[%clk 0:00:14.9]}
27... Nf4 {[%clk 0:01:05]} 28. Bxg7 {[%clk 0:00:11.1]} 28... h5 {[%clk
0:00:56.6]} 29. Qc3 {[%clk 0:00:09.8]} 29... Ne2 {[%clk 0:00:52.8]} 30. Qe5
{[%clk 0:00:04.7]} 30... Qd1+ {[%clk 0:00:48.8]} 31. Kb2 {[%clk 0:00:04.3]}
31... Bd4+ {[%clk 0:00:48.9]} 32. Qxd4 {[%clk 0:00:02.1]} 32... Nxd4 {[%clk
0:00:48.6]} 0-1

[Event "Betsys MČR v online bleskovém šachu 2021"]
[Site "Chess.com"]
[Date "2021.04.17"]
[Round "5"]
[White "Tomasbezdek07"]
[Black "sachovybukowski"]
[Result "1-0"]
[WhiteElo "1707"]
[BlackElo "1981"]
[TimeControl "180+1"]
[EndTime "9:46:50 PDT"]
[Termination "Uživatel Tomasbezdek07 zvítězil na čas"]

1. e4 {[%clk 0:03:00.9]} 1... c5 {[%clk 0:03:00]} 2. c3 {[%clk 0:03:00.3]} 2...
Nf6 {[%clk 0:02:59]} 3. e5 {[%clk 0:03:00]} 3... Nd5 {[%clk 0:02:59.1]} 4. d4
{[%clk 0:03:00.4]} 4... d6 {[%clk 0:02:58.6]} 5. Nf3 {[%clk 0:02:58.8]} 5... Nc6
{[%clk 0:02:58]} 6. Bb5 {[%clk 0:02:49.8]} 6... cxd4 {[%clk 0:02:50.2]} 7. cxd4
{[%clk 0:02:48.5]} 7... Qa5+ {[%clk 0:02:49]} 8. Nc3 {[%clk 0:02:36.9]} 8...
Nxc3 {[%clk 0:02:48.3]} 9. Bxc6+ {[%clk 0:02:36.5]} 9... bxc6 {[%clk 0:02:47.5]}
10. bxc3 {[%clk 0:02:35.7]} 10... Qxc3+ {[%clk 0:02:46.6]} 11. Bd2 {[%clk
0:02:36]} 11... Qd3 {[%clk 0:02:43.6]} 12. Qb3 {[%clk 0:02:18.9]} 12... Qxb3
{[%clk 0:02:33.1]} 13. axb3 {[%clk 0:02:17.4]} 13... Bg4 {[%clk 0:02:26.2]} 14.
O-O {[%clk 0:02:09.6]} 14... Bxf3 {[%clk 0:02:26.2]} 15. gxf3 {[%clk 0:02:10.2]}
15... e6 {[%clk 0:02:09.5]} 16. f4 {[%clk 0:02:09.3]} 16... d5 {[%clk
0:02:04.6]} 17. Ra6 {[%clk 0:01:54.5]} 17... c5 {[%clk 0:01:59.2]} 18. Rfa1
{[%clk 0:01:08.9]} 18... cxd4 {[%clk 0:01:58.6]} 19. Rxa7 {[%clk 0:01:07.4]}
19... Rxa7 {[%clk 0:01:28.4]} 20. Rxa7 {[%clk 0:01:05.6]} 20... f6 {[%clk
0:01:26.8]} 21. b4 {[%clk 0:01:01.3]} 21... fxe5 {[%clk 0:01:25.5]} 22. fxe5
{[%clk 0:01:01.4]} 22... Be7 {[%clk 0:01:23.2]} 23. b5 {[%clk 0:01:01.1]} 23...
Kf7 {[%clk 0:00:25.9]} 24. Bb4 {[%clk 0:00:58.2]} 24... Re8 {[%clk 0:00:22.9]}
25. b6 {[%clk 0:00:57.3]} 25... Kf8 {[%clk 0:00:05.1]} 26. Bxe7+ {[%clk
0:00:49.8]} 26... Rxe7 {[%clk 0:00:05]} 27. Rxe7 {[%clk 0:00:48.8]} 27... Kxe7
{[%clk 0:00:04.7]} 28. b7 {[%clk 0:00:48.1]} 28... d3 {[%clk 0:00:05.2]} 29.
b8=Q {[%clk 0:00:47.5]} 29... d2 {[%clk 0:00:05.1]} 30. Qb3 {[%clk 0:00:46.3]}
30... d4 {[%clk 0:00:03.9]} 31. Qd1 {[%clk 0:00:46.8]} 1-0

[Event "Betsys MČR v online bleskovém šachu 2021"]
[Site "Chess.com"]
[Date "2021.04.17"]
[Round "5"]
[White "LightningAttack_2000"]
[Black "MiroslavBucek"]
[Result "1-0"]
[WhiteElo "1903"]
[BlackElo "1619"]
[TimeControl "180+1"]
[EndTime "9:46:51 PDT"]
[Termination "Uživatel LightningAttack_2000 zvítězil na čas"]

1. e4 {[%clk 0:03:00.9]} 1... e5 {[%clk 0:02:58.8]} 2. Nf3 {[%clk 0:03:00.7]}
2... Nc6 {[%clk 0:02:57]} 3. Bb5 {[%clk 0:03:00.5]} 3... a6 {[%clk 0:02:56.2]}
4. Ba4 {[%clk 0:03:00.5]} 4... Nf6 {[%clk 0:02:56]} 5. O-O {[%clk 0:03:00.4]}
5... Nxe4 {[%clk 0:02:55.8]} 6. Re1 {[%clk 0:02:59.8]} 6... Nc5 {[%clk
0:02:54.6]} 7. Bxc6 {[%clk 0:02:59.5]} 7... dxc6 {[%clk 0:02:54.8]} 8. Nxe5
{[%clk 0:02:59.8]} 8... Ne6 {[%clk 0:02:54.1]} 9. d4 {[%clk 0:02:56.2]} 9... Bd6
{[%clk 0:02:53.4]} 10. Nf3 {[%clk 0:02:53.7]} 10... O-O {[%clk 0:02:53]} 11. c4
{[%clk 0:02:52.7]} 11... b6 {[%clk 0:02:44.4]} 12. Nc3 {[%clk 0:02:52.5]} 12...
Re8 {[%clk 0:02:43.2]} 13. Be3 {[%clk 0:02:49.2]} 13... c5 {[%clk 0:02:33.4]}
14. d5 {[%clk 0:02:46.6]} 14... Nf4 {[%clk 0:02:30.8]} 15. Qd2 {[%clk
0:02:41.8]} 15... Ng6 {[%clk 0:02:26.5]} 16. Bg5 {[%clk 0:02:38.9]} 16... f6
{[%clk 0:02:23.5]} 17. Be3 {[%clk 0:02:36.7]} 17... Bg4 {[%clk 0:02:23.3]} 18.
Qd1 {[%clk 0:02:15.7]} 18... Qd7 {[%clk 0:02:16.4]} 19. h3 {[%clk 0:02:14.4]}
19... Bxf3 {[%clk 0:02:05.8]} 20. Qxf3 {[%clk 0:02:14.2]} 20... Ne5 {[%clk
0:02:05.4]} 21. Qe2 {[%clk 0:02:12.7]} 21... Qf5 {[%clk 0:02:04.9]} 22. b3
{[%clk 0:02:05.5]} 22... a5 {[%clk 0:01:58.8]} 23. Qd2 {[%clk 0:02:04.1]} 23...
Rad8 {[%clk 0:01:49.2]} 24. Nb5 {[%clk 0:01:58.8]} 24... Nd3 {[%clk 0:01:39]}
25. Red1 {[%clk 0:01:55.6]} 25... Nb4 {[%clk 0:01:28.9]} 26. Rac1 {[%clk
0:01:46]} 26... Re7 {[%clk 0:01:07.6]} 27. a3 {[%clk 0:01:41.9]} 27... Na6
{[%clk 0:01:07]} 28. Nxd6 {[%clk 0:01:41.9]} 28... cxd6 {[%clk 0:01:05.4]} 29.
Bf4 {[%clk 0:01:41]} 29... Nb8 {[%clk 0:00:48.5]} 30. Re1 {[%clk 0:01:39.9]}
30... Red7 {[%clk 0:00:32.6]} 31. Re6 {[%clk 0:01:37.4]} 31... Nc6 {[%clk
0:00:26.2]} 32. Rce1 {[%clk 0:01:32.1]} 32... Nd4 {[%clk 0:00:24]} 33. R6e3
{[%clk 0:01:25.9]} 33... Qc2 {[%clk 0:00:17.6]} 34. Re8+ {[%clk 0:01:19.8]}
34... Rxe8 {[%clk 0:00:16.5]} 35. Rxe8+ {[%clk 0:01:19.4]} 35... Kf7 {[%clk
0:00:16.9]} 36. Qe3 {[%clk 0:01:19.2]} 36... Qxb3 {[%clk 0:00:13.6]} 37. Qe4
{[%clk 0:01:11.7]} 37... Qd1+ {[%clk 0:00:12.8]} 38. Kh2 {[%clk 0:01:11.5]}
38... Qb3 {[%clk 0:00:02.3]} 39. Bxd6 {[%clk 0:01:02.1]} 1-0

[Event "Betsys MČR v online bleskovém šachu 2021"]
[Site "Chess.com"]
[Date "2021.04.17"]
[Round "5"]
[White "FBingoPlayer"]
[Black "jarosymon"]
[Result "1-0"]
[WhiteElo "2191"]
[BlackElo "1781"]
[TimeControl "180+1"]
[EndTime "9:46:54 PDT"]
[Termination "Uživatel FBingoPlayer zvítězil na čas"]

1. Nc3 {[%clk 0:03:00.9]} 1... d6 {[%clk 0:02:58]} 2. e4 {[%clk 0:03:00.7]} 2...
Nd7 {[%clk 0:02:58.1]} 3. d4 {[%clk 0:03:01.1]} 3... c6 {[%clk 0:02:57.7]} 4. f4
{[%clk 0:03:01.5]} 4... e5 {[%clk 0:02:55]} 5. Nf3 {[%clk 0:03:01.6]} 5... Ngf6
{[%clk 0:02:47.5]} 6. Be3 {[%clk 0:03:01.3]} 6... exf4 {[%clk 0:02:42.1]} 7.
Bxf4 {[%clk 0:03:01]} 7... Be7 {[%clk 0:02:42.3]} 8. Qd2 {[%clk 0:03:00.5]} 8...
O-O {[%clk 0:02:41.5]} 9. O-O-O {[%clk 0:03:00.4]} 9... b5 {[%clk 0:02:36.3]}
10. Bd3 {[%clk 0:02:59.5]} 10... a5 {[%clk 0:02:33.5]} 11. e5 {[%clk 0:02:57.1]}
11... dxe5 {[%clk 0:02:32.9]} 12. dxe5 {[%clk 0:02:56]} 12... Nd5 {[%clk
0:02:27.8]} 13. Nxd5 {[%clk 0:02:55.5]} 13... cxd5 {[%clk 0:02:26.1]} 14. h4
{[%clk 0:02:55.7]} 14... f5 {[%clk 0:02:12.1]} 15. Bxb5 {[%clk 0:02:51.8]} 15...
Nc5 {[%clk 0:02:02.2]} 16. Qxd5+ {[%clk 0:02:31.9]} 16... Qxd5 {[%clk
0:02:00.3]} 17. Rxd5 {[%clk 0:02:32.8]} 17... Bb7 {[%clk 0:01:57.3]} 18. Bc4
{[%clk 0:02:25.8]} 18... Kh8 {[%clk 0:01:52.4]} 19. Rd2 {[%clk 0:02:25.2]} 19...
Ne4 {[%clk 0:01:48.5]} 20. Rd7 {[%clk 0:02:24.7]} 20... Ba6 {[%clk 0:01:12.5]}
21. Bxa6 {[%clk 0:02:19.1]} 21... Rxa6 {[%clk 0:01:12.5]} 22. Rxe7 {[%clk
0:02:19.3]} 22... a4 {[%clk 0:01:09.2]} 23. Rd1 {[%clk 0:02:13.6]} 23... a3
{[%clk 0:01:08.2]} 24. Rdd7 {[%clk 0:02:06.6]} 24... axb2+ {[%clk 0:01:03.9]}
25. Kxb2 {[%clk 0:02:07.5]} 25... Rb6+ {[%clk 0:00:53.3]} 26. Kc1 {[%clk
0:01:52.5]} 26... Rg6 {[%clk 0:00:19.1]} 27. Ng5 {[%clk 0:01:50.3]} 27... Nc3
{[%clk 0:00:16.2]} 28. Kd2 {[%clk 0:01:45.4]} 28... Ne4+ {[%clk 0:00:14.8]} 29.
Ke3 {[%clk 0:01:40.6]} 29... Nc5 {[%clk 0:00:09.2]} 30. Rc7 {[%clk 0:01:35.3]}
30... Na6 {[%clk 0:00:07.4]} 31. Rcd7 {[%clk 0:01:09.5]} 31... Nc5 {[%clk
0:00:06.7]} 32. Rd5 {[%clk 0:01:08.5]} 32... Na4 {[%clk 0:00:04.6]} 33. h5
{[%clk 0:01:03]} 33... Rc6 {[%clk 0:00:02.5]} 34. Rd8 {[%clk 0:00:50.1]} 1-0

[Event "Betsys MČR v online bleskovém šachu 2021"]
[Site "Chess.com"]
[Date "2021.04.17"]
[Round "5"]
[White "TomSedmihradsky"]
[Black "Jeff_CZE"]
[Result "0-1"]
[WhiteElo "1472"]
[BlackElo "1854"]
[TimeControl "180+1"]
[EndTime "9:46:55 PDT"]
[Termination "Uživatel Jeff_CZE zvítězil na čas"]

1. d4 {[%clk 0:03:00.9]} 1... e6 {[%clk 0:02:56.2]} 2. c4 {[%clk 0:03:00.2]}
2... d5 {[%clk 0:02:57.1]} 3. Nc3 {[%clk 0:02:58.7]} 3... Nf6 {[%clk 0:02:57.7]}
4. Nf3 {[%clk 0:02:57.3]} 4... Be7 {[%clk 0:02:54]} 5. Bf4 {[%clk 0:02:55.8]}
5... O-O {[%clk 0:02:54]} 6. e3 {[%clk 0:02:54.3]} 6... b6 {[%clk 0:02:54.4]} 7.
cxd5 {[%clk 0:02:50.8]} 7... Nxd5 {[%clk 0:02:54]} 8. Nxd5 {[%clk 0:02:44.8]}
8... Qxd5 {[%clk 0:02:54.9]} 9. Bd3 {[%clk 0:02:37.9]} 9... Bb4+ {[%clk
0:02:46.2]} 10. Kf1 {[%clk 0:02:33.3]} 10... c5 {[%clk 0:02:18.9]} 11. Bxb8
{[%clk 0:02:10.6]} 11... Rxb8 {[%clk 0:02:15.8]} 12. e4 {[%clk 0:02:10]} 12...
Qc6 {[%clk 0:02:05.8]} 13. Ne5 {[%clk 0:02:07]} 13... Qc7 {[%clk 0:02:00.3]} 14.
f4 {[%clk 0:02:00.4]} 14... cxd4 {[%clk 0:01:52.3]} 15. g3 {[%clk 0:01:55.4]}
15... Bb7 {[%clk 0:01:39.6]} 16. Rc1 {[%clk 0:01:50.4]} 16... Qe7 {[%clk
0:01:38.9]} 17. Nc4 {[%clk 0:01:24.5]} 17... f5 {[%clk 0:01:32.3]} 18. exf5
{[%clk 0:01:13.6]} 18... Bxh1 {[%clk 0:01:30.5]} 19. fxe6 {[%clk 0:00:52.7]}
19... Qb7 {[%clk 0:01:19.9]} 20. Rc2 {[%clk 0:00:22.8]} 20... Bf3 {[%clk
0:01:01.2]} 21. Qc1 {[%clk 0:00:17.2]} 21... g5 {[%clk 0:00:50.8]} 22. f5 {[%clk
0:00:11.9]} 22... h6 {[%clk 0:00:36.6]} 23. h4 {[%clk 0:00:09.5]} 23... Be4
{[%clk 0:00:31.8]} 24. Bxe4 {[%clk 0:00:07.7]} 24... Qxe4 {[%clk 0:00:30.6]} 25.
Re2 {[%clk 0:00:06]} 25... Rxf5+ {[%clk 0:00:29.6]} 0-1